bitfinex-derivatives/quotes_BNBF0:USTF0_20250521
["timestamp","ask_amount","ask_price","bid_price","bid_amount"]
[1747826063930,1.356,654.67,653.28,2.08879103]
[1747826064126,1.356,654.67,653.29,0.92520872]
[1747826064326,1.356,654.67,653.3,0.92520812]
[1747826064525,1.356,654.67,653.31,0.92520812]
[1747826064729,1.356,654.67,653.32,2.08879043]
[1747826064930,1.356,654.67,653.33,1.23104238]
[1747826065126,1.356,654.67,653.34,0.92520812]
[1747826065331,1.356,654.67,653.35,2.08879043]
[1747826065528,1.356,654.67,653.36,0.92520812]
[1747826065732,1.356,654.67,653.37,2.08879043]
[1747826065933,1.356,654.67,653.38,0.61937467]
[1747826066133,1.356,654.67,653.39,2.08879083]
[1747826066334,1.356,654.67,653.4,0.92520852]
[1747826066531,1.356,654.67,653.41,0.92520852]
[1747826066731,1.356,654.67,653.42,0.92520852]
[1747826066937,1.356,654.67,653.43,0.61937467]
[1747826067232,1.356,654.67,653.44,2.08879124]
[1747826067436,1.356,654.67,653.45,0.61937467]
[1747826067737,1.356,654.67,653.46,0.61924413]
[1747826067930,1.356,654.67,653.47,0.61924413]
[1747826068131,1.356,654.67,653.48,0.61924413]
[1747826068333,1.356,654.67,653.49,0.61924413]
[1747826068536,1.356,654.67,653.5,0.61924413]
[1747826068735,1.356,654.67,653.51,0.61924413]
[1747826068936,1.356,654.67,653.48,0.30583426]
[1747826069231,1.356,654.67,653.49,0.61920562]
[1747826069536,1.356,654.67,653.5,0.92503988]
[1747826069738,1.356,654.67,653.5,0.30583426]
[1747826071134,1.356,654.67,653.51,0.30583426]
[1747826073040,1.356,654.67,653.52,0.30583426]
[1747826074540,1.356,654.67,653.53,0.30583426]
[1747826076241,1.356,654.67,653.54,0.30583426]
[1747826076644,0.26608861,654.68,653.54,0.30583426]
[1747826076845,3.82008945,654.91,653.54,0.30583426]
[1747826077245,0.26606827,654.68,653.54,0.30583426]
[1747826077545,3.82008945,654.91,653.54,0.30583426]
[1747826077945,3.82008945,654.91,653.55,0.30583426]
[1747826078344,0.26606827,654.9,653.55,0.30583426]
[1747826079145,0.26606827,654.9,653.56,0.30583426]
[1747826079544,1.157,654.89,653.56,0.30583426]
[1747826080247,0.2660703,654.88,653.56,0.30583426]
[1747826080449,0.2660703,654.88,653.25,0.30197727]
[1747826080648,0.2660703,654.88,653.26,0.92485453]
[1747826080843,0.2660703,654.88,653.27,0.92485453]
[1747826081044,0.2660703,654.88,653.28,0.92485453]
[1747826081244,0.2660703,654.88,653.29,2.0871737]
[1747826081443,0.2660703,654.88,653.3,0.92485453]
[1747826081643,0.2660703,654.88,653.31,1.23068726]
[1747826081846,0.2660703,654.88,653.32,2.0871737]
[1747826082043,0.2660703,654.88,653.33,0.92485453]
[1747826082244,0.2660703,654.88,653.34,2.0871737]
[1747826082448,0.2660703,654.88,653.35,0.92485453]
[1747826082649,0.2660703,654.88,653.36,2.0871737]
[1747826082849,0.2660703,654.88,653.37,0.92485453]
[1747826083045,1.157,654.89,653.38,0.92485453]
[1747826083251,1.157,654.89,653.39,2.0871737]
[1747826083449,1.157,654.89,653.4,2.0871737]
[1747826083652,1.157,654.89,653.41,0.6190211]
[1747826083950,1.157,654.89,653.4,1.16231917]
[1747826083951,1.157,654.89,653.42,1.7813047]
[1747826084248,0.26605403,654.88,653.43,0.61898553]
[1747826084446,0.26605403,654.88,653.44,0.30583273]
[1747826084649,0.26605403,654.88,653.45,0.61898553]
[1747826085652,0.26605403,654.88,653.46,0.61901031]
[1747826085844,1.157,654.89,653.47,0.61901031]
[1747826086048,0.26604894,654.87,653.48,0.61901031]
[1747826086245,0.26604894,654.87,653.49,0.61901031]
[1747826086445,0.26604894,654.87,653.5,0.61901031]
[1747826086645,0.26604894,654.87,653.47,0.30583273]
[1747826086850,0.26604894,654.87,653.48,0.61903203]
[1747826087046,0.26604894,654.87,653.49,0.61903203]
[1747826087252,0.26604894,654.87,653.5,0.61903203]
[1747826087452,0.26604894,654.87,653.51,0.61902524]
[1747826087749,0.26604894,654.87,653.5,0.30583273]
[1747826088953,1.157,654.89,653.5,0.30583273]
[1747826089253,0.2660581,654.86,653.5,0.30583273]
[1747826089453,0.2660581,654.86,653.51,0.61916598]
[1747826089653,0.2660581,654.86,653.3,0.30583273]
[1747826089856,0.2660581,654.86,653.31,0.92501315]
[1747826090056,0.2660581,654.86,653.32,2.08861877]
[1747826090253,0.2660581,654.86,653.33,2.08861877]
[1747826090450,0.2660581,654.86,653.34,1.23084588]
[1747826090653,0.2660581,654.86,653.35,2.08861877]
[1747826090851,0.2660581,654.86,653.36,0.92501315]
[1747826091051,0.2660581,654.86,653.37,2.08859475]
[1747826091254,0.2660581,654.86,653.38,0.92498913]
[1747826091553,0.2660581,654.86,653.39,2.39442748]
[1747826091756,0.2660581,654.86,653.4,0.92498913]
[1747826091953,1.157,654.89,653.41,2.08859475]
[1747826092154,0.26604691,654.85,653.42,0.619154]
[1747826092455,0.26604691,654.85,653.43,1.16360562]
[1747826092653,0.26604691,654.85,653.44,0.619154]
[1747826092860,0.26604691,654.85,653.45,0.6192483]
[1747826093053,0.26604691,654.85,653.46,0.92508103]
[1747826093258,0.26604691,654.85,653.47,0.6192483]
[1747826093557,0.26604691,654.85,653.48,0.6192483]
[1747826093760,0.26604691,654.85,653.49,0.6192483]
[1747826093960,0.26604691,654.85,653.5,0.6192483]
[1747826094161,0.26604691,654.85,653.51,0.6192483]
[1747826094463,0.26604691,654.85,653.52,0.61935899]
[1747826094666,0.26604691,654.85,653.51,0.30583273]
[1747826094859,1.157,654.89,653.52,0.61935896]
[1747826095063,1.157,654.89,653.51,0.30583273]
[1747826095264,0.26606013,654.84,653.52,0.61935754]
[1747826095464,0.26606013,654.84,653.51,0.30583273]
[1747826095759,0.26606013,654.84,653.52,0.61942487]
[1747826095959,0.26606013,654.84,653.51,0.30583273]
[1747826096159,0.26606013,654.84,653.52,0.61942669]
[1747826096359,0.26606013,654.84,653.51,0.30583273]
[1747826096563,0.26606013,654.84,653.52,0.61944189]
[1747826096764,0.26606013,654.84,653.51,0.30583273]
[1747826096959,0.26606013,654.84,653.52,0.92534486]
[1747826097165,0.26606013,654.84,653.53,0.61950819]
[1747826097465,0.26606013,654.84,653.52,0.30583273]
[1747826097665,0.26606013,654.84,653.53,0.61958878]
[1747826097959,0.26606013,654.84,653.52,0.30583273]
[1747826098365,0.26606013,654.84,653.53,0.92611791]
[1747826098566,0.26606013,654.84,653.53,0.30583273]
[1747826099467,0.26606013,654.84,653.54,0.92646263]
[1747826099670,0.26606013,654.84,653.54,0.30583273]
[1747826100868,3.82008945,654.99,653.54,0.30583273]
[1747826101168,0.26605403,654.83,653.54,0.30583273]
[1747826101366,0.26605403,654.83,653.55,0.30583273]
[1747826101563,1.346,654.98,653.55,0.30583273]
[1747826102068,1.346,654.98,653.3,0.30583273]
[1747826102263,0.26605911,654.97,653.31,0.92660045]
[1747826102469,0.26605911,654.97,653.32,0.92660045]
[1747826102670,0.26605911,654.97,653.33,0.92660045]
[1747826102869,0.26605911,654.97,653.34,0.92660045]
[1747826103071,0.26605911,654.97,653.35,0.92660045]
[1747826103269,0.26605911,654.97,653.36,2.09240954]
[1747826103567,0.26605911,654.97,653.37,2.39824227]
[1747826103766,0.26605911,654.97,653.38,0.92660045]
[1747826103972,1.346,654.98,653.39,0.92660045]
[1747826104168,0.26604996,654.96,653.4,2.09240954]
[1747826104367,0.26604996,654.96,653.41,0.92660045]
[1747826104569,0.26604996,654.96,653.42,2.09240954]
[1747826104770,0.26604996,654.96,653.43,0.92659945]
[1747826104967,0.26604996,654.96,653.44,0.92659945]
[1747826105170,0.26604996,654.96,653.45,2.09240854]
[1747826105371,0.26604996,654.96,653.46,0.92659945]
[1747826105671,0.26604996,654.96,653.47,2.09240854]
[1747826105870,0.26604996,654.96,653.48,2.09240854]
[1747826106070,0.26604996,654.96,653.49,0.92659945]
[1747826106367,0.26604996,654.96,653.5,2.09240684]
[1747826106572,0.26604996,654.96,653.51,0.62160829]
[1747826106768,0.26604996,654.96,653.52,0.62160829]
[1747826106973,1.346,654.98,653.52,0.62160829]
[1747826107366,1.346,654.98,653.53,0.62160829]
[1747826107572,1.346,654.98,653.54,0.62160829]
[1747826107773,1.346,654.98,653.55,0.92744102]
[1747826107971,1.346,654.98,653.56,0.62160829]
[1747826108174,0.26603267,654.97,653.56,0.62160829]
[1747826108475,0.26603267,654.97,653.57,0.62191037]
[1747826108672,0.26603267,654.97,653.58,0.62191037]
[1747826108873,0.26603267,654.97,653.59,0.62191037]
[1747826109074,0.26603267,654.97,653.6,0.62191037]
[1747826109373,0.26603267,654.97,653.61,0.62191037]
[1747826109976,1.346,654.98,653.61,0.62191037]
[1747826110170,1.346,654.98,653.62,0.62257591]
[1747826110373,1.346,654.98,653.63,0.62257591]
[1747826110571,1.346,654.98,653.6,0.30583273]
[1747826110772,1.346,654.98,653.61,0.62254329]
[1747826110976,1.346,654.98,653.62,0.92837602]
[1747826111176,0.26603064,654.97,653.63,0.62254329]
[1747826112079,0.26603064,654.97,653.64,0.30583273]
[1747826112080,3.82008945,654.87,653.64,0.30583273]
[1747826113980,3.82008945,654.87,653.4,0.30583273]
[1747826114180,3.82008945,654.87,653.41,0.92850419]
[1747826114379,3.82008945,654.87,653.42,2.09763241]
[1747826114577,3.82008945,654.87,653.43,0.92850419]
[1747826114776,3.82008945,654.87,653.44,2.09763241]
[1747826114981,3.82008945,654.87,653.45,0.92850419]
[1747826115183,3.82008945,654.87,653.46,0.92850419]
[1747826115383,3.82008945,654.87,653.47,0.92850419]
[1747826115583,3.82008945,654.87,653.48,0.92850419]
[1747826115783,3.82008945,654.87,653.49,2.09763241]
[1747826115982,3.82008945,654.87,653.5,1.23433692]
[1747826116182,3.82008945,654.87,653.51,2.09763241]
[1747826116483,3.82008945,654.87,653.52,2.09763241]
[1747826116783,3.82008945,654.87,653.53,0.92850419]
[1747826117083,0.26605098,654.86,653.54,0.62266827]
[1747826117283,0.26605098,654.86,653.55,0.62266827]
[1747826117483,0.26605098,654.86,653.56,0.62266827]
[1747826117685,0.26605098,654.86,653.57,0.62266827]
[1747826117885,0.26605098,654.86,653.58,0.62266827]
[1747826118085,0.26605098,654.86,653.59,0.62266827]
[1747826118385,0.26605098,654.86,653.6,0.62266827]
[1747826118585,0.26605098,654.86,653.61,0.62266827]
[1747826118786,0.26605098,654.86,653.62,0.62266827]
[1747826119087,3.82008945,654.87,653.56,0.30583273]
[1747826119279,3.82008945,654.87,653.57,0.62269816]
[1747826119479,3.82008945,654.87,653.58,0.92853089]
[1747826119687,3.82008945,654.87,653.59,0.62269816]
[1747826119886,3.82008945,654.87,653.6,0.62269816]
[1747826120185,0.26604386,654.86,653.61,0.62269816]
[1747826120386,0.26604386,654.86,653.62,0.62269816]
[1747826120590,0.26604386,654.86,653.63,0.62269816]
[1747826120787,0.26604386,654.86,653.62,0.30583273]
[1747826120987,0.26604386,654.86,653.63,0.62266805]
[1747826121188,0.26604386,654.86,653.62,0.30583273]
[1747826121488,0.26604386,654.86,653.63,0.62267221]
[1747826121690,0.26604386,654.86,653.62,0.30583273]
[1747826121886,0.26604386,654.86,653.63,0.62266495]
[1747826122087,3.82008945,654.87,653.62,0.30583273]
[1747826122287,3.82008945,654.87,653.63,0.62273593]
[1747826122484,3.82008945,654.87,653.62,0.30583273]
[1747826122688,3.82008945,654.87,653.63,0.62273563]
[1747826122882,3.82008945,654.87,653.62,0.30583273]
[1747826123287,0.26603979,654.86,653.63,0.62267496]
[1747826123485,0.26603979,654.86,653.62,0.30583273]
[1747826123689,0.26603979,654.86,653.63,0.622665]
[1747826123890,0.26603979,654.86,653.62,0.30583273]
[1747826124089,0.26603979,654.86,653.63,0.62275724]
[1747826124290,0.26603979,654.86,653.62,0.30583273]
[1747826124490,0.26603979,654.86,653.63,0.62276032]
[1747826124692,0.26603979,654.86,653.62,0.30583273]
[1747826124993,3.82008945,654.87,653.62,0.30583273]
[1747826126192,0.26607539,654.86,653.62,0.30583273]
[1747826127995,3.82008945,654.87,653.62,0.30583273]
[1747826128995,3.82008945,654.87,653.45,0.30583273]
[1747826129196,0.26607539,654.86,653.46,0.62178875]
[1747826129396,0.26607539,654.86,653.47,0.6217835]
[1747826129596,0.26607539,654.86,653.48,0.6217835]
[1747826129801,0.26607539,654.86,653.49,0.6217835]
[1747826129997,0.26607539,654.86,653.5,0.6217835]
[1747826130198,0.26607539,654.86,653.51,0.6217835]
[1747826130498,0.26607539,654.86,653.45,0.30583273]
[1747826130702,0.26607539,654.86,653.52,0.30583273]
[1747826131599,0.26607539,654.86,653.32,0.30583273]
[1747826131795,0.26607539,654.86,653.33,2.0981088]
[1747826132000,0.26607539,654.86,653.34,0.92763299]
[1747826132202,0.26607539,654.86,653.35,0.92763299]
[1747826132396,0.831,654.85,653.36,0.92763299]
[1747826132596,0.831,654.85,653.37,0.62175771]
[1747826132800,0.831,654.85,653.38,0.62175771]
[1747826133098,0.831,654.85,653.39,1.79218573]
[1747826133304,0.831,654.85,653.4,0.62170992]
[1747826133500,0.831,654.85,653.41,0.62170992]
[1747826133702,3.82008945,654.75,653.42,0.62170992]
[1747826134001,3.82008945,654.75,653.43,0.62170992]
[1747826134296,3.82008945,654.75,653.44,0.62170992]
[1747826134501,3.82008945,654.75,653.45,0.62170992]
[1747826134702,3.82008945,654.75,653.46,0.62170992]
[1747826134903,3.82008945,654.75,653.41,0.30583273]
[1747826135204,3.82008945,654.75,653.47,0.30583273]
[1747826136912,3.82008945,654.75,653.25,0.30583273]
[1747826137096,3.82008945,654.75,653.26,0.92735507]
[1747826137299,0.26610794,654.74,653.27,0.92735507]
[1747826137500,0.26610794,654.74,653.28,0.92735507]
[1747826137702,0.26610794,654.74,653.29,2.09726745]
[1747826137899,0.26610794,654.74,653.3,0.92735507]
[1747826138103,0.26610794,654.74,653.31,1.2331878]
[1747826138406,0.26610794,654.74,653.32,2.09726745]
[1747826138605,0.26610794,654.74,653.33,0.92735507]
[1747826138905,0.26610794,654.74,653.34,2.09726745]
[1747826139104,0.26610794,654.74,653.35,0.92735507]
[1747826139304,0.26610794,654.74,653.36,0.62148171]
[1747826139504,0.26610794,654.74,653.37,1.79139409]
[1747826139799,0.26610794,654.74,653.38,0.92731444]
[1747826140003,0.26610794,654.74,653.39,0.62141299]
[1747826140203,0.26610794,654.74,653.4,0.62141299]
[1747826140404,0.26610794,654.74,653.41,0.62141299]
[1747826140603,0.26610794,654.74,653.38,0.30583273]
[1747826140604,0.26610794,654.74,653.42,0.62141299]
[1747826140803,0.26610794,654.74,653.43,0.62141299]
[1747826141004,0.26610794,654.74,653.44,0.62141299]
[1747826141198,0.26610794,654.74,653.45,0.62141299]
[1747826141399,0.26610794,654.74,653.43,0.30583273]
[1747826141603,0.26610794,654.74,653.44,0.62142087]
[1747826141806,0.26610794,654.74,653.43,0.30583273]
[1747826141807,0.26610794,654.74,653.45,0.62142087]
[1747826142001,0.26610794,654.74,653.46,0.62142087]
[1747826142204,0.26610794,654.74,653.47,0.62142087]
[1747826142405,0.26610794,654.74,653.48,0.62142087]
[1747826142605,0.26610794,654.74,653.49,0.62142087]
[1747826142806,0.26610794,654.74,653.5,0.62142087]
[1747826143102,3.82008945,654.75,653.45,0.30583273]
[1747826143400,0.26608149,654.73,653.46,0.62141219]
[1747826143603,0.26608149,654.73,653.47,0.62141219]
[1747826143801,0.26608149,654.73,653.48,0.62141219]
[1747826144004,0.26608149,654.73,653.49,0.62141219]
[1747826144304,0.26608149,654.73,653.5,0.62141219]
[1747826144501,0.26608149,654.73,653.47,0.30583273]
[1747826144707,0.26608149,654.73,653.48,0.62138852]
[1747826144908,0.26608149,654.73,653.49,0.62138852]
[1747826145108,0.26608149,654.73,653.5,0.62138852]
[1747826145309,0.26608149,654.73,653.49,0.30583273]
[1747826145607,0.26608149,654.73,653.5,0.62128398]
[1747826145808,0.26608149,654.73,653.49,0.30583273]
[1747826146007,3.82008945,654.75,653.5,0.62127829]
[1747826146204,3.82008945,654.75,653.49,0.30583273]
[1747826146403,3.82008945,654.75,653.5,0.62137608]
[1747826146608,3.82008945,654.75,653.49,0.30583273]
[1747826146809,3.82008945,654.75,653.5,0.62136639]
[1747826147008,3.82008945,654.75,653.29,0.30583273]
[1747826147205,0.26608149,654.74,653.3,0.92723972]
[1747826147504,0.26608149,654.74,653.31,2.09682212]
[1747826147708,0.26608149,654.74,653.32,0.92723972]
[1747826148008,0.26608149,654.74,653.33,0.92723972]
[1747826148205,0.26608149,654.74,653.34,2.09682212]
[1747826148408,3.82008945,654.68,653.35,0.92723972]
[1747826148605,3.82008945,654.68,653.36,0.92723972]
[1747826148806,3.82008945,654.68,653.37,2.09680147]
[1747826149013,3.82008945,654.68,653.38,0.92721907]
[1747826149209,0.2660937,654.67,653.39,2.09680147]
[1747826149408,0.2660937,654.67,653.4,0.92721907]
[1747826149612,0.2660937,654.67,653.41,0.62134901]
[1747826149811,0.2660937,654.67,653.42,0.92718174]
[1747826150007,0.2660937,654.67,653.43,0.62134901]
[1747826150206,0.2660937,654.67,653.44,0.62134901]
[1747826150407,0.2660937,654.67,653.45,0.62134901]
[1747826150608,0.2660937,654.67,653.46,0.62134901]
[1747826150807,0.2660937,654.67,653.47,0.62134901]
[1747826151011,0.2660937,654.67,653.48,0.62134901]
[1747826151211,0.2660937,654.67,653.49,0.62134901]
[1747826151507,0.2660937,654.67,653.5,0.92718174]
[1747826151709,0.2660937,654.67,653.51,0.62133455]
[1747826151905,3.82008945,654.68,653.5,0.30583273]
[1747826152110,3.82008945,654.68,653.51,0.62132792]
[1747826152409,0.26607946,654.66,653.5,0.30583273]
[1747826152611,0.26607946,654.66,653.52,0.30583273]
[1747826153610,0.26607946,654.66,653.31,0.30583273]
[1747826153812,0.26607946,654.66,653.32,2.09718967]
[1747826154012,0.26607946,654.66,653.33,0.92716238]
[1747826154211,0.26607946,654.66,653.34,2.09718747]
[1747826154406,0.26607946,654.66,653.35,0.92716238]
[1747826154605,0.26607946,654.66,653.36,2.09718747]
[1747826154806,0.26607946,654.66,653.37,0.92716238]
[1747826155007,3.82008945,654.68,653.38,2.09718747]
[1747826155207,0.26608759,654.65,653.39,0.92716238]
[1747826155407,0.26608759,654.65,653.4,2.09718747]
[1747826155607,0.26608759,654.65,653.41,0.6212931]
[1747826155807,0.26608759,654.65,653.42,1.17002509]
[1747826156007,0.26608759,654.65,653.43,0.6212931]
[1747826156614,0.26608759,654.65,653.44,1.17002509]
[1747826156811,0.26608759,654.65,653.45,0.6212931]
[1747826158013,3.82008945,654.68,653.46,0.30583273]
[1747826158311,3.82008945,654.68,653.47,0.6212931]
[1747826159213,3.82008945,654.68,653.46,0.30583273]
[1747826159214,3.82008945,654.68,653.48,0.62161561]
[1747826159415,1.52707335,654.67,653.49,0.62161561]
[1747826159617,1.52707335,654.67,653.5,0.62161561]
[1747826159812,1.52707335,654.67,653.48,0.30583273]
[1747826160009,1.52707335,654.67,653.49,0.62163715]
[1747826160209,1.52707335,654.67,653.5,0.62163715]
[1747826160411,1.52707335,654.67,653.51,0.62163715]
[1747826160616,1.52707335,654.67,653.48,0.30583273]
[1747826160810,1.52707335,654.67,653.49,0.62163569]
[1747826161016,1.261,654.67,653.5,0.62163569]
[1747826161215,0.26607234,654.66,653.51,0.92746842]
[1747826161509,0.26607234,654.66,653.51,0.30583273]
[1747826162216,0.26607234,654.66,653.3,0.30583273]
[1747826162416,0.26607234,654.66,653.31,2.09806098]
[1747826162612,0.26607234,654.66,653.32,0.92743933]
[1747826162812,0.26607234,654.66,653.31,1.17062165]
[1747826162813,0.26607234,654.66,653.33,2.09806098]
[1747826163017,0.26607234,654.66,653.34,0.92743933]
[1747826163213,0.26607234,654.66,653.35,0.9274385]
[1747826163417,0.26607234,654.66,653.36,0.9274385]
[1747826163713,0.26607234,654.66,653.37,0.9274385]
[1747826163919,1.261,654.67,653.38,0.92744742]
[1747826164118,1.261,654.67,653.39,0.92744742]
[1747826164320,1.261,654.67,653.4,2.09806907]
[1747826164520,1.261,654.67,653.41,0.92744742]
[1747826164719,1.261,654.67,653.42,0.62157614]
[1747826164917,1.261,654.67,653.43,0.62157614]
[1747826165117,1.261,654.67,653.44,1.17062165]
[1747826165318,0.26607946,654.66,653.45,0.62157614]
[1747826165721,0.26607946,654.66,653.46,0.30583273]
[1747826165921,0.26607946,654.66,653.47,0.62157614]
[1747826166916,0.26607946,654.66,653.46,0.30583273]
[1747826166917,0.26607946,654.66,653.48,0.62162006]
[1747826167122,1.261,654.67,653.49,0.62162006]
[1747826167323,1.261,654.67,653.5,0.62162006]
[1747826167523,1.261,654.67,653.51,0.62162006]
[1747826167722,1.261,654.67,653.49,0.30583273]
[1747826168021,1.261,654.67,653.5,0.62153749]
[1747826168221,0.26609166,654.66,653.51,0.62153749]
[1747826168421,0.26609166,654.66,653.49,0.30583273]
[1747826168621,0.26609166,654.66,653.5,0.62154075]
[1747826168823,0.26609166,654.66,653.51,0.62154075]
[1747826169019,0.26609166,654.66,653.33,0.30583273]
[1747826169220,0.26609166,654.66,653.34,0.92732604]
[1747826169421,0.26609166,654.66,653.35,0.92732604]
[1747826169621,0.26609166,654.66,653.36,0.92732604]
[1747826169824,0.26609166,654.66,653.37,0.92732604]
[1747826170022,1.261,654.67,653.38,2.09891213]
[1747826170324,1.261,654.67,653.39,0.92732604]
[1747826170624,1.261,654.67,653.4,0.92747098]
[1747826170825,1.261,654.67,653.41,0.92747098]
[1747826171025,1.261,654.67,653.42,1.79318574]
[1747826171226,0.26608251,654.66,653.43,1.79318574]
[1747826171428,0.26608251,654.66,653.44,0.92743238]
[1747826171629,0.26608251,654.66,653.45,0.62159965]
[1747826172723,3.82008945,654.63,653.46,0.30583273]
[1747826172930,3.82008945,654.63,653.47,0.62159965]
[1747826174027,3.82008945,654.63,653.48,0.30583273]
[1747826174228,3.82008945,654.63,653.49,0.62159965]
[1747826174428,3.82008945,654.63,653.5,0.6216762]
[1747826174627,3.82008945,654.63,653.51,0.6216762]
[1747826174821,3.82008945,654.63,653.52,0.6216762]
[1747826175025,3.82008945,654.63,653.48,0.30583273]
[1747826175226,3.82008945,654.63,653.49,0.62169665]
[1747826175427,3.82008945,654.63,653.5,0.62169665]
[1747826175627,3.82008945,654.63,653.51,0.62169665]
[1747826175827,0.951,654.62,653.52,0.62169665]
[1747826176024,0.951,654.62,653.53,0.62171335]
[1747826176226,0.951,654.62,653.54,0.62171335]
[1747826176428,0.951,654.62,653.55,0.62171335]
[1747826176625,0.951,654.62,653.56,0.62171335]
[1747826176823,0.951,654.62,653.57,0.62171335]
[1747826177023,0.951,654.62,653.58,0.62171335]
[1747826177228,0.951,654.62,653.59,0.62171335]
[1747826177424,0.951,654.62,653.6,0.62171335]
[1747826177730,0.951,654.62,653.61,0.92754608]
[1747826177924,0.951,654.62,653.62,0.62171335]
[1747826178223,0.951,654.62,653.63,0.62171335]
[1747826178427,0.951,654.62,653.64,0.62171335]
[1747826178627,0.951,654.62,653.65,0.62171335]
[1747826178826,0.951,654.62,653.61,0.30583273]
[1747826179025,0.951,654.62,653.62,0.62133002]
[1747826179233,0.951,654.62,653.63,0.62133002]
[1747826179431,0.951,654.62,653.61,0.30583273]
[1747826179432,0.951,654.62,653.64,0.62133002]
[1747826179634,0.951,654.62,653.66,0.30583273]
[1747826180927,0.951,654.62,653.67,0.30583273]
[1747826182329,0.951,654.62,653.68,0.30583273]
[1747826183434,0.951,654.62,653.69,0.30583273]
[1747826185237,0.951,654.62,653.7,0.30583273]
[1747826186236,0.951,654.62,653.4,0.30197727]
[1747826186430,0.951,654.62,653.41,2.09454219]
[1747826186632,0.951,654.62,653.42,0.92633607]
[1747826186931,3.82008945,655.0,653.43,2.09444805]
[1747826187132,3.82008945,655.0,653.44,0.92633607]
[1747826187330,3.82008945,655.0,653.45,0.92633607]
[1747826187533,3.82008945,655.0,653.46,0.92633607]
[1747826187737,3.82008945,655.0,653.47,2.09444805]
[1747826188032,3.82008945,655.0,653.48,0.92633607]
[1747826188335,3.82008945,655.0,653.49,2.09427136]
[1747826188530,3.82008945,655.0,653.5,0.92615938]
[1747826188732,3.82008945,655.0,653.49,1.16811198]
[1747826188733,3.82008945,655.0,653.51,2.09427136]
[1747826188929,3.82008945,655.0,653.52,0.92615938]
[1747826189133,3.82008945,655.0,653.53,0.92615938]
[1747826189434,3.82008945,655.0,653.54,1.78847251]
[1747826189633,3.82008945,655.0,653.55,1.78847251]
[1747826189829,1.077,654.99,653.56,1.78847251]
[1747826190033,1.077,654.99,653.57,0.62036053]
[1747826190235,1.077,654.99,653.58,0.62036053]
[1747826190435,1.077,654.99,653.59,0.62036053]
[1747826190631,1.077,654.99,653.6,0.62036053]
[1747826190830,1.077,654.99,653.61,0.62036053]
[1747826191032,1.077,654.99,653.62,0.62036053]
[1747826191335,1.077,654.99,653.63,0.62036053]
[1747826191537,1.077,654.99,653.64,0.62036053]
[1747826191735,1.077,654.99,653.65,0.62036053]
[1747826191934,1.077,654.99,653.66,0.62036053]
[1747826192136,1.077,654.99,653.59,0.30579686]
[1747826192334,1.077,654.99,653.6,0.61990876]
[1747826192532,1.077,654.99,653.61,0.6199086]
[1747826192832,1.077,654.99,653.62,0.6199086]
[1747826193138,1.077,654.99,653.63,0.6199086]
[1747826193438,1.077,654.99,653.64,0.6199086]
[1747826193636,1.077,654.99,653.65,0.6199086]
[1747826193938,3.82008945,654.94,653.64,0.30579686]
[1747826194138,3.82008945,654.94,653.65,0.61989138]
[1747826194336,3.82008945,654.94,653.64,0.30579686]
[1747826194539,3.82008945,654.94,653.65,0.619825]
[1747826194738,3.82008945,654.94,653.64,0.30579686]
[1747826194940,3.82008945,654.94,653.65,0.61981582]
[1747826195141,3.82008945,654.94,653.64,0.30579686]
[1747826195344,3.82008945,654.94,653.66,0.30579686]
[1747826196242,3.82008945,654.94,653.67,0.30579686]
[1747826197239,3.82008945,654.94,653.68,0.30579686]
[1747826198744,3.82008945,654.94,653.69,0.30579686]
[1747826199946,3.82008945,654.94,653.43,0.30197727]
[1747826200146,3.82008945,654.94,653.44,0.9262536]
[1747826200341,3.82008945,654.94,653.45,2.09135853]
[1747826200544,3.82008945,654.94,653.46,0.9262536]
[1747826200743,3.82008945,654.94,653.47,0.9262536]
[1747826200945,3.82008945,654.94,653.48,0.9262536]
[1747826201145,3.82008945,654.94,653.49,0.9262536]
[1747826201347,3.82008945,654.94,653.5,0.9262536]
[1747826201545,3.82008945,654.94,653.51,0.9262536]
[1747826201848,3.82008945,654.94,653.52,1.78557585]
[1747826202146,3.82008945,654.94,653.53,0.62047092]
[1747826202346,3.82008945,654.94,653.54,0.92625345]
[1747826202545,3.82008945,654.94,653.55,0.62047092]
[1747826202739,3.82008945,654.94,653.56,0.62047092]
[1747826202941,3.82008945,654.94,653.57,0.62047092]
[1747826203144,3.82008945,654.94,653.58,0.62047092]
[1747826203445,3.82008945,654.94,653.59,0.62047092]
[1747826203646,3.82008945,654.94,653.6,0.62047092]
[1747826203845,3.82008945,654.94,653.61,0.92625345]
[1747826204043,3.82008945,654.94,653.62,0.62025881]
[1747826204247,3.82008945,654.94,653.61,0.30578253]
[1747826204448,3.82008945,654.94,653.62,0.62024379]
[1747826204648,3.82008945,654.94,653.61,0.30578253]
[1747826204843,3.82008945,654.94,653.62,0.62024242]